Cogmind - Beta 13 @@@ ROGUE MODE // 2024.04.04 @ 22:49:33 Player: Bernad Result: Destroyed by D-53 Grenadier with Mini Grenade Launcher Performance ------------- Evolutions (1) 500 Regions Visited (3) 600 Robots Destroyed (45) 225 Value Destroyed (1125) 1125 Prototype IDs (2) 40 Alien Tech Used (0) 0 Bonus (32) 32 TOTAL SCORE: 2522 Bonus ------- High Alert Combat Kills 32 Cogmind --------- Core Integrity 0/400 Matter 202/300 Energy 25/100 System Corruption 0% Temperature Cool (0) Movement Core (400) Ox7 Location -9/Mines Parts ------- > --- POWER (1) -------- (None) > --- PROPULSION (2) --- (None) > --- UTILITY (3) ------ Large Storage Unit Signal Interpreter > --- WEAPON (3) ------- Particle Cannon > --- INVENTORY (15) --- Improved Aluminum Leg Medium Storage Unit Peak State ------------ > --- POWER ------------ Ion Engine > --- PROPULSION ------- Aluminum Leg Improved Aluminum Leg > --- UTILITY ---------- Small Storage Unit Weight Redist. System Signal Interpreter > --- WEAPON ----------- Medium Laser Particle Cannon Heavy Assault Rifle > --- INVENTORY -------- Ion Engine Light Ion Engine Light Treads Light Treads Aluminum Leg Compact Wheel EM Pulse Cannon EM Pulse Cannon [Rating: 14] Favorites ----------- Power Light Ion Engine Engine Light Ion Engine Propulsion Aluminum Leg Treads Light Treads Leg Aluminum Leg Wheel Wheel Utility Signal Interpreter Device Weight Redist. System Storage Small Storage Unit Processor Signal Interpreter Weapon Light Assault Rifle Energy Gun Medium Laser Energy Cannon EM Pulse Cannon Ballistic Gun Light Assault Rifle Ballistic Cannon Light Cannon Launcher Grenade Launcher Build | -11 -10 -9 -9 ------- Run | Yrd Mat Mat Min Slots Evolved 2 | . . 2 . Power . | . . . . Propulsion . | . . . . Utility 1 | . . 1 . Weapon 1 | . . 1 . Parts Attached 59 | 5 26 15 13 Power 7 | 1 2 3 1 Engine 7 | 1 2 3 1 Core . | . . . . Reactor . | . . . . Propulsion 13 | 2 6 1 4 Treads 3 | . . . 3 Leg 5 | . 4 1 . Wheel 5 | 2 2 . 1 Hover . | . . . . Flight . | . . . . Utility 10 | . 7 3 . Device 3 | . 2 1 . Storage 5 | . 4 1 . Processor 2 | . 1 1 . Hackware . | . . . . Protection . | . . . . Artifact . | . . . . Weapon 29 | 2 11 8 8 Energy Gun 6 | 1 2 2 1 Energy Cannon 6 | . . 2 4 Ballistic Gun 10 | 1 3 4 2 Ballistic Cannon 2 | . 2 . . Launcher 5 | . 4 . 1 Special Weapon . | . . . . Impact Weapon . | . . . . Slashing Weapon . | . . . . Piercing Weapon . | . . . . Special Melee Weapon . | . . . . Unidentified Prototypes . | . . . . Parts Lost 23 | . 6 4 13 Power 6 | . 2 2 2 Propulsion 7 | . 3 . 4 Utility 1 | . . . 1 Weapon 9 | . 1 2 6 Highest Loss Streak 12 | . 2 3 12 To Critical Strikes . | . . . . Average Slot Usage (%) 94 | . 93 96 94 Engine 11 | . 12 10 10 Treads 4 | . . . 11 Leg 12 | . 4 22 10 Wheel 5 | . 21 . . Device 8 | . 8 11 6 Storage 11 | . 12 11 11 Processor 9 | . 4 9 11 Energy Gun 7 | . 7 10 5 Energy Cannon 5 | . . 7 6 Ballistic Gun 13 | . 11 12 14 Ballistic Cannon 1 | . 5 . . Launcher 3 | . 4 . 5 Naked Turns . | . . . . Heaviest Build 33 | 6 29 32 33 Greatest Support 46 | 20 32 29 46 Greatest Overweight (x) 1 | . 1 1 1 Average Overweight (x) . | . . . . Largest Inventory Capacity 15 | 5 15 15 15 Average Capacity 10 | 5 7 8 15 Most Carried 10 | 4 8 8 10 Average Carried 7 | 1 5 7 8 Final Capacity 15 | 5 8 15 15 Final Carried 8 | 4 5 8 2 Class Distribution -------------------- 41% | Gunner 29% | Mutant 14% | Scavenger-Gunner 9% | Skirmisher 4% | Scavenger-Mutant Dominant Class ---------------- Mutant | -10/Materials Gunner | -9/Materials Gunner | -9/Mines Resources | -11 -10 -9 -9 ----------- Run | Yrd Mat Mat Min Matter Collected 1057 | 252 496 306 3 Remotely . | . . . . Salvage Created 1211 | 30 533 602 46 Parts 97 | 3 47 43 4 Haulers Intercepted 1 | . 1 . . Recyclers Shooed 2 | . 2 . . Parts Field Recycled . | . . . . Retrieved Matter . | . . . . Parts Self-Destructed . | . . . . Prevented . | . . . . Kills | -11 -10 -9 -9 ------- Run | Yrd Mat Mat Min Combat Hostiles Destroyed 38 | 1 17 17 3 Guns 24 | 1 7 13 3 Cannons 7 | . 3 4 . AOE 7 | . 7 . . Classes Destroyed 8 | 1 5 2 . Builder 1 | . 1 . . Hauler 1 | . 1 . . Recycler 1 | . 1 . . Operator 1 | . . 1 . Watcher 3 | . 1 2 . Swarmer 13 | . 3 7 3 Grunt 23 | 1 14 8 . Sentry 2 | . . 2 . Best Kill Streak 7 | 1 4 7 3 Combat Bots Only 7 | 1 4 7 3 Max Kills in Single Turn 2 | 1 2 2 1 Gunslinging . | . . . . Exploded 2 | . 2 . . Melee . | . . . . Uniques/NPCs Destroyed . | . . . . Combat | -11 -10 -9 -9 -------- Run | Yrd Mat Mat Min Hostile Shots Fired 217 | 2 87 80 48 Missed 50 | 1 25 19 5 Damage Taken 2631 | 11 810 632 1178 Core 607 | 11 183 150 263 Absorbed by Shields . | . . . . Core Remaining (%) 58 | 95 22 . . Volleys Fired 132 | 2 55 56 19 Largest 3 | 2 2 3 2 Hottest 141 | 70 85 141 83 Shots Fired 276 | 4 101 139 32 Gun 190 | 4 60 101 25 Cannon 68 | . 24 38 6 Launcher 18 | . 17 . 1 Special . | . . . . Kinetic 141 | 2 61 55 23 Thermal 108 | 2 23 81 2 Explosive 18 | . 17 . 1 Electromagnetic 9 | . . 3 6 Robot Hit Streak 13 | 4 13 12 5 Robot Miss Streak 7 | . 4 7 3 Penetration Max . | . . . . Secondary Targets 2 | . 2 . . Max Gunslinging Chain 1 | . 1 . . Shots Hit Robots 147 | 4 58 68 17 Core Hits 79 | 2 41 29 7 Critical Kills . | . . . . Critical Parts Destroyed . | . . . . Critical Strikes 4 | . . 4 . Burn 4 | . . 4 . Melee Attacks . | . . . . Impact . | . . . . Slashing . | . . . . Piercing . | . . . . Sneak Attacks . | . . . . Combat Hostiles . | . . . . Follow-up Attacks . | . . . . Damage Inflicted 2850 | 42 1533 1066 209 Guns 1179 | 42 392 636 109 Cannons 683 | . 192 430 61 Explosions 988 | . 949 . 39 Melee . | . . . . Ramming . | . . . . Kinetic 802 | 17 396 293 96 Thermal 917 | 25 188 691 13 Explosive 988 | . 949 . 39 Electromagnetic 143 | . . 82 61 Impact . | . . . . Slashing . | . . . . Piercing . | . . . . Highest Corruption 1 | . 1 . . Average Corruption 1 | . 1 . . Corruption Purged . | . . . . Corruption Blocked . | . . . . Effects 2 | . 2 . . Message Errors 1 | . 1 . . Parts Fused 1 | . 1 . . Overload Shots . | . . . . Overflow Damage 28 | . 17 11 . Projectiles 28 | . 17 11 . Explosions . | . . . . Melee . | . . . . Knockbacks 1 | . 1 . . Impact . | . . . . Kinetic 1 | . 1 . . Secondary . | . . . . Self-Inflicted Damage 29 | . 29 . . Shots 1 | . 1 . . Rammed . | . . . . Targets Rammed . | . . . . Kicked . | . . . . Crushed . | . . . . Highest Temperature 494 | 46 99 494 69 Average Temperature 109 | 26 31 161 23 Received Heat Transfer 597 | 6 312 219 60 Effects 4 | . . 4 . Shutdowns 1 | . . 1 . Energy Bleed 1 | . . 1 . Matter Decay 1 | . . 1 . Short Circuit 1 | . . 1 . Siege Activations . | . . . . Robots Corrupted . | . . . . Combat Hostiles . | . . . . Parts Fried 2 | . . 2 . Impact Corruptions . | . . . . Robots Melted . | . . . . Combat Hostiles . | . . . . Parts Melted 6 | . . 6 . Heat Transferred 2591 | 74 555 1925 37 Parts Sabotaged . | . . . . Parts Stolen . | . . . . Parts Stripped . | . . . . Power Chain Reactions . | . . . . Alert | -11 -10 -9 -9 ------- Run | Yrd Mat Mat Min Peak Influence 454 | 20 454 413 157 Initial 157 | . 13 81 157 Average 142 | 3 244 186 61 Maximum Alert Level 2 | . 2 2 . Low Security (%) 71 | 100 28 63 100 Level 1 22 | . 65 21 . Level 2 6 | . 5 15 . Level 3 . | . . . . Level 4 . | . . . . Level 5 . | . . . . High Security . | . . . . Max Security . | . . . . Squads Dispatched 8 | . 4 4 . Investigation 7 | . 3 4 . Extermination . | . . . . Reinforcement 1 | . 1 . . Assault . | . . . . Garrison . | . . . . Intercept . | . . . . Searches Triggered . | . . . . Construction Impeded . | . . . . Haulers Reinforced . | . . . . Active Scanning Responses . | . . . . Cargo Convoy Interrupts . | . . . . Stealth | -11 -10 -9 -9 --------- Run | Yrd Mat Mat Min Distress Signals 2 | . . 1 1 Communications Jammed . | . . . . Distress Signals . | . . . . Times Spotted 59 | 1 19 30 9 Peak Tracking Total 5 | 1 4 5 4 Tactical Retreats 5 | . . 4 1 Traps | -11 -10 -9 -9 ------- Run | Yrd Mat Mat Min Traps Triggered 3 | . 3 . . Indirectly . | . . . . Trap Hack Attempts . | . . . . Triggered . | . . . . Disarmed . | . . . . Reprogrammed . | . . . . Reused . | . . . . Traps Extracted . | . . . . Installed . | . . . . Triggered . | . . . . Machines | -11 -10 -9 -9 ---------- Run | Yrd Mat Mat Min Machines Disabled 2 | . 1 1 . Max in Single Turn 1 | . 1 1 . Machines Repaired . | . . . . Machines Dismantled . | . . . . Machines Sabotaged . | . . . . Overloaded Fab Kills . | . . . . Hacking | -11 -10 -9 -9 --------- Run | Yrd Mat Mat Min Machines Accessed 13 | . 7 6 . Terminals 11 | . 5 6 . Fabricators . | . . . . Repair Stations . | . . . . Recycling Units 2 | . 2 . . Scanalyzers . | . . . . Garrison Access . | . . . . Total Hacks 53 | . 30 23 . Successful 31 | . 18 13 . Failed 21 | . 12 9 . Catastrophic 3 | . 2 1 . Database Lockouts 1 | . . 1 . Manual 5 | . 4 1 . Terminals 47 | . 24 23 . Fabricators . | . . . . Repair Stations . | . . . . Recycling Units 6 | . 6 . . Scanalyzers . | . . . . Garrison Access . | . . . . Terminal Hacks 26 | . 13 13 . Record 11 | . 1 10 . Prototype ID Bank 2 | . 1 1 . Emergency Access Points 1 | . 1 . . Alert Level 4 | . 3 1 . Locate Traps 2 | . 1 1 . Dispatch Records 1 | . 1 . . Security Status 2 | . 2 . . Transport Status 1 | . 1 . . Hauler Manifests 1 | . 1 . . Registered Components 1 | . 1 . . Fabricator Hacks . | . . . . Repair Station Hacks . | . . . . Recycling Unit Hacks 5 | . 5 . . Recycle Component 1 | . 1 . . Process 2 | . 2 . . Report Inventory 1 | . 1 . . Retrieve Matter 1 | . 1 . . Scanalyzer . | . . . . Garrison Access Hacks . | . . . . Unauthorized Hacks . | . . . . Terminals . | . . . . Fabricators . | . . . . Repair Stations . | . . . . Recycling Units . | . . . . Scanalyzers . | . . . . Garrison Access . | . . . . Data Cores Recovered . | . . . . Used . | . . . . Hacking Detections 13 | . 6 7 . Full Trace Events 12 | . 6 6 . Feedback Events 1 | . 1 . . Corruption 1 | . 1 . . Feedback Blocked . | . . . . Robot Schematics Acquired . | . . . . Robots Built . | . . . . Authchips . | . . . . Time . | . . . . Total Robot Build Rating . | . . . . Part Schematics Acquired . | . . . . Parts Built . | . . . . Authchips . | . . . . Time . | . . . . Total Part Build Rating . | . . . . Parts Repaired . | . . . . Time . | . . . . Parts Recycled 1 | . 1 . . Recycled Matter 75 | . 75 . . Retrieved Matter . | . . . . Retrieved Components . | . . . . Parts Scanalyzed . | . . . . Part Schematics Acquired . | . . . . Parts Damaged . | . . . . Bothacking | -11 -10 -9 -9 ------------ Run | Yrd Mat Mat Min Used RIF Installer . | . . . . Robots Hacked . | . . . . Non-combat . | . . . . Combat . | . . . . Robot Hacks Applied . | . . . . Relay Couplers Released . | . . . . Fabnet Peak Effective % . | . . . . Robots Rewired . | . . . . Allies Hacked . | . . . . Hacks Repelled . | . . . . Allies | -11 -10 -9 -9 -------- Run | Yrd Mat Mat Min Total Allies . | . . . . Largest Group . | . . . . Highest-Rated Group . | . . . . Highest-Rated Ally . | . . . . Total Orders . | . . . . Ally Attacks . | . . . . Total Damage . | . . . . Kills . | . . . . Allies Corrupted . | . . . . Allies Melted . | . . . . Intel | -11 -10 -9 -9 ------- Run | Yrd Mat Mat Min Robot Analysis Total . | . . . . Derelict Logs Recovered 1 | . . . 1 Drone Launches . | . . . . Drone Recoveries . | . . . . Exploration | -11 -10 -9 -9 ------------- Run | Yrd Mat Mat Min Turns Passed 3493 | 140 857 1070 1426 Spaces Moved 2045 | 145 580 622 698 Core 65 | 65 . . . Treads 422 | . . . 422 Legs 1021 | . 127 622 272 Wheels 537 | 80 453 . 4 Hover . | . . . . Flight . | . . . . Fastest Speed 50 | 50 80 120 115 Average Speed 130 | 66 100 128 171 Slowest Speed 190 | 80 190 190 190 Overloaded Moves . | . . . . Propulsion Burnouts . | . . . . Robots Hopped . | . . . . Cave-ins Triggered . | . . . . Exploration Rate (%) 45 | 6 75 35 66 Regions Visited 3 Branch Regions 1 Pre-discovered Areas 2 | . . . 2 Known Exits Taken 1 | . . 1 . Unknown Exits Taken 2 | 1 1 . . Scrap Searched 1 | . . . 1 Spaces Dug 7 | . 7 . . Terrain Destroyed 125 | . 120 . 5 Melee . | . . . . Projectile . | . . . . AOE 125 | . 120 . 5 Terrain Rammed . | . . . . Walls Destroyed . | . . . . Machines Disabled . | . . . . Actions | -11 -10 -9 -9 --------- Run | Yrd Mat Mat Min Total 2629 | 183 755 793 898 Wait 342 | 26 76 77 163 Move 2042 | 144 579 621 698 Hop . | . . . . Pick Up 35 | 6 12 14 3 Fast Attach 12 | 3 6 3 . Attach 26 | 2 10 7 7 Detach 1 | . 1 . . Swap 21 | . 10 5 6 Drop 18 | . 6 10 2 Fire 132 | 2 55 56 19 Melee . | . . . . Ram . | . . . . Kick . | . . . . Crush . | . . . . Escape Stasis . | . . . . Rewire . | . . . . Trap . | . . . . Miscellaneous . | . . . . Route ------- -11/Scrapyard -10/Materials (discovered 3 exits: *Mat x2 / [*Min]) -9/Materials (discovered 2 exits: *Min x2) -9/Mines (discovered 1 exit: *Mat) History --------- Turn | Location | Event 2 | -11/Scrapyard | Met Revision 17 109 | -11/Scrapyard | Discovered new exit (range 8) 141 | -11/Scrapyard | Entered Materials 309 | -10/Materials | Build established: Mutant 342 | -10/Materials | Discovered new exit (range 10) 474 | -10/Materials | Discovered new exit (range 10) 695 | -10/Materials | Core integrity fell below 50% 912 | -10/Materials | Discovered new exit (range 16) 998 | -10/Materials | Entered another Materials area 998 | -9/Materials | Evolved 2 slots: Utility x1, Weapon x1 1114 | -9/Materials | Discovered new exit (range 12) 1236 | -9/Materials | Lost 3 parts (1p2w) 1479 | -9/Materials | Build established: Skirmisher 1529 | -9/Materials | Central database locked down 1736 | -9/Materials | Destroyed 7 combat bots 1829 | -9/Materials | Build established: Gunner 1902 | -9/Materials | Discovered new exit (range 7) 2067 | -9/Materials | Identified exit to Mines 2068 | -9/Materials | Entered Mines 2153 | -9/Mines | Discovered new exit (range 8) 2165 | -9/Mines | Learned location of Storage (-8) 2419 | -9/Mines | A weapon hastily lodged in a ceiling crevice suddenly fell to the ground 2768 | -9/Mines | Assembled infested the area 2773 | -9/Mines | Assisted by a Guerilla fighting off Assembled 2798 | -9/Mines | Core integrity fell below 50% 3245 | -9/Mines | Build established: Scavenger-Gunner 3353 | -9/Mines | Identified exit to Materials 3486 | -9/Mines | Core integrity fell below 20% 3494 | -9/Mines | Destroyed by D-53 Grenadier with Mini Grenade Launcher Last Messages --------------- The unstable cave ceiling collapses. Grenade Launcher destroyed. Lgt. Treads destroyed. The unstable cave ceiling collapses. Lgt. Ion Engine destroyed. Lgt. Assault Rifle destroyed. The unstable cave ceiling collapses. Lgt. Treads destroyed. Lgt. Assault Rifle destroyed. Imp. Treads destroyed. The unstable cave ceiling collapses. EM Pulse Cannon destroyed. The unstable cave ceiling collapses. Med. Laser destroyed. Lgt. Ion Engine destroyed. Com. Wheel destroyed. The unstable cave ceiling collapses. EM Pulse Cannon destroyed. The unstable cave ceiling collapses. [Achievement: First Step to Greatness] Map ----- +----------------------------------------------------+ | # ##?????????????????????# ######## ## ## | | # #?????????? #?????????# #??????# | | # # ##???###?? #?????????# #??????######## | | # ## #### ## #?????????## ###???????????# | | #% ## #???####### ###?????????# | | # ## #???## ## ##????????# | | # ### ###???# ##???????# | | # #### ## ####?????# ##??????# | | ### #????????# ## ###????# | | ### ### ########## ########## ##???# | | #?# ##???????## ###?### | | ##?## ### ###### ### ##???????# ##??# | | ##???# #?# #????# #?# #???????# #?## | | ##???# #?# #????# #?## #???????# ### | | ! ###?# ### ##???# #??# #???????# ### | | ### ##??# #?## #???????# ####?# | | ###### #??# ### ##???????# #????# | | ##??## #?## ##????????# #????## | | ### ##?# """" ##?????????# #?????# | | % #??# """" ##??????????# ###???# | | % #??# """" ##??????????# #???## | | % #?## ##?????????# #????# | | ##?# ##????????### #????? | | % ##??# #??????????# #????? | | # ## ####???## #??????????# #????? | | ##??# #????????#### @ #??????????# #????? | | ##???# #???????????# #??????????# #????# | | #????# #???????????# #??????##### #???## | | #????# #???????????# #?????## ## #??## | | #????# #???????????## #????## / # #?## | | #????# #???????????# ##??## # #?# | | #????# #???????????# # ## #?## ## #?# | | #????# #???????????## dd## ### ### #?# | | #????# ????????????# # ## #### ### | | #????# ????????????## ## ### ## | | #???? #?????????????## ### | | #????? ???????????????# # #### | | ??????????????????????### ## #?# ##### | | #????????????????????????# ##### ### #???## | | #????????????????????????#####??## ## #????## | | ???????????????????????????###### ### ###?????## | | ??????????????????????????## #????????? | | ??????????????????????????# [ #????????? | | ??????????????????????????## ###%###????????? | | ???????????????????????????### ###?#*#????????? | | ?????????????????????????????###????#%#### | | ????????????????????????????????????#=* """ ? | | ????????????????????????????????????###### """ ? | | ?????????????????????????????????????????????????? | | ?????????????????????????????????????????????????? | +----------------------------------------------------+ Best States ------------- Heat Dissipation 28 Energy Generation 10 Energy Capacity 250 Matter Stores 300 Matter Capacity 300 Sight Range 16 Terrain Scan Range 14 Terrain Scan Density 10 Additional Mass Support 6 Evasion (%) 55 Targeting Accuracy 5 Recoil Reduction 2 Item Schematics ----------------- None Robot Schematics ------------------ None Fabricated ------------ Nothing Alien Tech Used ----------------- None Achievements -------------- Crack Shot First Step to Greatness Librarian Loot Pinata One Hack Too Far Shopping List Storm Trooper Uninvited Guest Challenges ------------ None Game ------ Seed ExplosiveTractorLauncher Manual? 0 Play Time 01:14:27 Cumulative 1.2 hours Start 2024.04.04 @ 21:26:48 End 2024.04.04 @ 22:49:33 Sessions 1 Manual Loads 0 Difficulty Rogue Special Mode None Game No. 1 Rogue 1 Adventurer 0 Explorer 0 Win Type - Total 0 Types 0/0/0/0/0/0/0/0/0 Lore% 1 Gallery% 2 Achievement% 3 Wizard Run 0 Options --------- Layout 1 ASCII 0 Keyboard 0 Movement Mouse Keybinds 0 Fullscreen 2 Font 32/SmallcapsGlow Map View 50x35 Zoom Use 0% Tactical HUD 0 Map Filters NONE Filters NONE Steam 1 RUN: 09ac3ff6-b868-4821-be6c-501eb1bc51f8